bitfinex/quotes_BTCUSD_20250331
["timestamp","ask_amount","ask_price","bid_price","bid_amount"]
[1743402467935,0.57503885,82192.0,82191.0,0.00013999]
[1743402470397,0.59409929,82192.0,82191.0,0.00013999]
[1743402477079,0.59409929,82192.0,82191.0,9.9e-07]
[1743402477294,0.555545,82177.0,82176.0,9.9e-07]
[1743402477501,0.312171,82162.0,82161.0,0.004]
[1743402478562,0.012171,82162.0,82161.0,0.004]
[1743402478969,0.01264108,82162.0,82161.0,0.004]
[1743402479782,0.01364108,82162.0,82161.0,0.004]
[1743402480259,0.04476064,82162.0,82161.0,0.004]
[1743402481674,0.05930149,82162.0,82161.0,0.004]
[1743402482052,0.06853015,82162.0,82161.0,0.004]
[1743402487190,0.04946386,82162.0,82161.0,0.004]
[1743402487370,0.32275201,82162.0,82161.0,0.1294]
[1743402487572,0.33492301,82162.0,82161.0,0.004]
[1743402490203,0.35398899,82162.0,82161.0,0.004]
[1743402493636,0.03258933,82162.0,82161.0,0.259595]
[1743402493838,0.03258933,82162.0,82161.0,0.384495]
[1743402496851,0.03258933,82162.0,82161.0,0.1289]
[1743402497230,0.01352335,82162.0,82161.0,0.1289]
[1743402497429,0.02569435,82162.0,82161.0,0.1289]
[1743402500354,0.34475982,82162.0,82161.0,0.004]
[1743402501745,0.35930067,82162.0,82161.0,0.004]
[1743402501948,0.35830067,82162.0,82161.0,0.004]
[1743402502164,0.41677458,82162.0,82161.0,0.004]
[1743402502372,0.36030067,82162.0,82161.0,1e-06]
[1743402502783,0.35830067,82162.0,82161.0,1e-06]
[1743402503252,0.35930067,82162.0,82161.0,1e-06]
[1743402503460,1.22850867,82162.0,82161.0,1e-06]
[1743402503896,1.23150867,82162.0,82161.0,1e-06]
[1743402504244,0.555638,82147.0,82136.0,0.0485]
[1743402504442,0.57017885,82147.0,82136.0,0.0485]
[1743402504882,0.58924848,82147.0,82136.0,0.0485]
[1743402505956,0.59024848,82147.0,82136.0,0.0485]
[1743402507357,0.57117885,82147.0,82136.0,0.0485]
[1743402508738,0.57117885,82147.0,82133.0,0.0764]
[1743402508938,0.57117885,82147.0,82131.0,0.004]
[1743402509351,0.58032635,82147.0,82131.0,0.004]
[1743402509569,0.57932635,82147.0,82131.0,0.004]
[1743402509767,0.58232635,82147.0,82131.0,0.004]
[1743402510192,0.58132635,82147.0,82131.0,0.004]
[1743402510398,0.60239621,82147.0,82131.0,0.004]
[1743402510989,0.60039621,82147.0,82131.0,0.004]
[1743402511393,0.60339621,82147.0,82131.0,0.004]
[1743402511579,0.65119621,82147.0,82146.0,1e-06]
[1743402512180,0.64919621,82147.0,82146.0,1e-06]
[1743402512493,0.65119621,82147.0,82146.0,1e-06]
[1743402512719,0.65619621,82147.0,82146.0,1e-06]
[1743402512924,0.60339621,82147.0,82146.0,1e-06]
[1743402513385,0.60839621,82147.0,82146.0,1e-06]
[1743402514669,0.29385536,82147.0,82146.0,1e-06]
[1743402514895,0.58885536,82147.0,82146.0,1e-06]
[1743402515028,0.59385536,82147.0,82146.0,1e-06]
[1743402515434,0.58885536,82147.0,82146.0,1e-06]
[1743402515748,0.58685536,82147.0,82146.0,1e-06]
[1743402515953,0.59085536,82147.0,82146.0,1e-06]
[1743402517264,0.5717855,82147.0,82146.0,1e-06]
[1743402520401,0.59085579,82147.0,82146.0,1e-06]
[1743402523628,0.79560852,82147.0,82146.0,1e-06]
[1743402523906,0.68539664,82147.0,82146.0,1e-06]
[1743402524048,0.60539664,82147.0,82146.0,1e-06]
[1743402527366,0.58632635,82147.0,82146.0,1e-06]
[1743402527711,0.58232635,82147.0,82146.0,1e-06]
[1743402528069,0.58632635,82147.0,82146.0,1e-06]
[1743402528268,0.70661118,82147.0,82146.0,1e-06]
[1743402528519,0.70261118,82147.0,82146.0,1e-06]
[1743402528920,0.70761118,82147.0,82146.0,1e-06]
[1743402529118,0.70461118,82147.0,82146.0,1e-06]
[1743402529397,0.70761118,82147.0,82146.0,1e-06]
[1743402529619,0.58732635,82147.0,82146.0,1e-06]
[1743402529905,0.58432635,82147.0,82146.0,1e-06]
[1743402530136,0.58732635,82147.0,82146.0,1e-06]
[1743402530320,0.60639835,82147.0,82146.0,1e-06]
[1743402530921,0.555685,82132.0,82131.0,0.004]
[1743402531120,0.57022585,82132.0,82131.0,0.004]
[1743402531729,0.58929893,82132.0,82131.0,0.004]
[1743402532326,0.58976872,82132.0,82131.0,0.004]
[1743402533686,0.59176872,82132.0,82131.0,0.004]
[1743402534264,0.70477508,82132.0,82131.0,0.004]
[1743402534469,0.62477508,82132.0,82131.0,0.004]
[1743402534902,0.59476872,82132.0,82131.0,0.004]
[1743402537415,0.57569564,82132.0,82131.0,0.004]
[1743402538013,0.99379564,82132.0,82131.0,0.004]
[1743402540314,1.01286971,82132.0,82131.0,0.004]
[1743402541502,0.99832886,82132.0,82131.0,0.004]
[1743402542240,0.33671886,82132.0,82131.0,0.004]
[1743402543626,0.35125971,82132.0,82131.0,0.004]
[1743402547273,0.33218564,82132.0,82131.0,0.004]
[1743402550542,0.35125954,82132.0,82131.0,0.004]
[1743402557232,0.33218564,82132.0,82131.0,0.004]
[1743402557451,0.30546979,82132.0,82131.0,0.004]
[1743402557660,0.30546979,82132.0,82131.0,0.384888]
[1743402558460,0.30246979,82132.0,82131.0,0.384888]
[1743402558666,0.30446979,82132.0,82131.0,0.384888]
[1743402559316,0.30246979,82132.0,82131.0,0.384888]
[1743402559522,0.00346979,82132.0,82131.0,0.384888]
[1743402560353,0.02254122,82132.0,82131.0,0.384888]
[1743402560778,0.02154122,82132.0,82131.0,0.384888]
[1743402560987,0.01954122,82132.0,82131.0,0.384888]
[1743402561191,0.01954122,82132.0,82131.0,0.524768]
[1743402567404,0.00046979,82132.0,82131.0,0.524768]
[1743402570262,0.01953929,82132.0,82131.0,0.524768]
[1743402573896,0.01953929,82132.0,82131.0,0.524728]
[1743402576689,0.01953929,82132.0,82131.0,0.1292]
[1743402576971,0.01953929,82132.0,82131.0,0.524728]
[1743402577328,0.00046979,82132.0,82131.0,0.524728]
[1743402580283,0.01953966,82132.0,82131.0,0.524728]
[1743402581069,0.01953966,82132.0,82131.0,0.64501283]
[1743402583450,0.01953966,82132.0,82131.0,0.64701283]
[1743402586353,0.01953966,82132.0,82131.0,0.64501283]
[1743402586752,0.01953966,82132.0,82131.0,0.64801283]
[1743402587154,0.01953966,82132.0,82131.0,0.65101283]
[1743402587354,0.00046979,82132.0,82131.0,0.65101283]
[1743402590487,0.01953745,82132.0,82131.0,0.65101283]
[1743402593558,0.01953745,82132.0,82131.0,0.390888]
[1743402593783,0.01953745,82132.0,82131.0,0.530688]
[1743402594673,0.01953745,82132.0,82131.0,0.451188]
[1743402594875,0.01953745,82132.0,82131.0,0.405488]
[1743402597188,0.00046979,82132.0,82131.0,0.405488]
[1743402600294,0.01953863,82132.0,82131.0,0.405488]
[1743402600491,0.01953863,82132.0,82131.0,0.485588]
[1743402600693,0.01953863,82132.0,82131.0,0.345788]
[1743402600898,0.01953863,82132.0,82131.0,0.485588]
[1743402601095,0.01953863,82132.0,82131.0,0.60587283]
[1743402601579,0.01953863,82132.0,82131.0,0.485588]
[1743402604784,0.01953863,82132.0,82131.0,1.23831283]
[1743402604984,0.01953863,82132.0,82131.0,1.28561283]
[1743402606005,0.01953863,82132.0,82131.0,1.165328]
[1743402607062,0.01953863,82132.0,82131.0,1.025528]
[1743402607299,0.01953863,82132.0,82131.0,1.165328]
[1743402610531,0.00046979,82132.0,82131.0,1.165328]
[1743402612499,0.00046979,82132.0,82131.0,1.085228]
[1743402613918,0.0195376,82132.0,82131.0,1.085228]
[1743402617509,0.00046979,82132.0,82131.0,1.085228]
[1743402618145,0.00046979,82132.0,82131.0,1.037928]
[1743402622014,0.01953797,82132.0,82131.0,1.037928]
[1743402623880,0.01953797,82132.0,82131.0,1.15821283]
[1743402623881,9.7e-07,82132.0,82131.0,1.15821283]
[1743402624105,9.7e-07,82132.0,82131.0,1.28621283]
[1743402624310,0.3,82165.0,82131.0,1.28621283]
[1743402624311,0.3,82165.0,82164.0,0.01217]
[1743402624482,0.3,82165.0,82164.0,0.00014103]
[1743402624683,0.32415698,82165.0,82164.0,0.00014103]
[1743402625094,0.01198698,82165.0,82164.0,0.00014103]
[1743402625299,0.3,82167.0,82165.0,0.01217]
[1743402625502,0.3,82163.0,82159.0,0.395401]
[1743402625714,0.3,82163.0,82161.0,0.243422]
[1743402626733,0.01217,82166.0,82161.0,0.012171]
[1743402626911,0.3,82165.0,82161.0,0.012171]
[1743402627271,0.3,82165.0,82160.0,0.012171]
[1743402627477,0.3,82165.0,82159.0,0.39544802]
[1743402627478,0.255588,82163.0,82159.0,0.13984702]
[1743402627673,0.31217,82163.0,82159.0,0.13984702]
[1743402628121,0.3,82163.0,82161.0,0.012171]
[1743402628326,0.3,82163.0,82161.0,0.255595]
[1743402628532,0.3,82163.0,82160.0,0.243427]
[1743402628947,0.31218259,82165.0,82162.0,0.243421]
[1743402629353,0.31218259,82165.0,82161.0,0.012171]
[1743402629735,0.31218259,82165.0,82159.0,0.13984702]
[1743402630415,0.01218259,82165.0,82160.0,0.243427]
[1743402630628,0.01218259,82165.0,82164.0,0.255585]
[1743402630843,0.3,82167.0,82165.0,0.01217]
[1743402631027,0.3,82167.0,82164.0,0.01217]
[1743402631234,0.243427,82160.0,82159.0,0.13984702]
[1743402631761,0.243421,82162.0,82159.0,0.13984702]
[1743402632014,0.255598,82160.0,82159.0,0.13984702]
[1743402632248,0.255598,82160.0,82159.0,4.702e-05]
[1743402632553,0.383198,82160.0,82159.0,4.702e-05]
[1743402632875,0.683198,82160.0,82159.0,4.702e-05]
[1743402633615,0.683198,82160.0,82159.0,0.00104702]
[1743402633816,0.684198,82160.0,82159.0,0.00104702]
[1743402634001,0.684198,82160.0,82159.0,4.702e-05]
[1743402634381,0.685198,82160.0,82159.0,4.702e-05]
[1743402634634,0.684198,82160.0,82159.0,4.702e-05]
[1743402635003,0.685198,82160.0,82159.0,4.702e-05]
[1743402635161,0.684198,82160.0,82159.0,4.702e-05]
[1743402635564,0.685198,82160.0,82159.0,4.702e-05]
[1743402636955,0.81946159,82160.0,82159.0,4.702e-05]
[1743402637116,0.69973885,82160.0,82159.0,4.702e-05]
[1743402640535,0.71880777,82160.0,82159.0,4.702e-05]
[1743402641341,1.19224177,82160.0,82159.0,4.702e-05]
[1743402643504,1.10075877,82160.0,82159.0,4.702e-05]
[1743402644776,0.71880777,82160.0,82159.0,4.702e-05]
[1743402645002,1.15874777,82160.0,82159.0,4.702e-05]
[1743402645613,0.255676,82135.0,82134.0,0.6324]
[1743402645822,0.012174,82136.0,82134.0,0.63251972]
[1743402646040,0.012175,82135.0,82134.0,0.63251972]
[1743402646857,0.013175,82135.0,82134.0,0.63751972]
[1743402647063,0.001,82135.0,82134.0,0.63751972]
[1743402647266,0.001,82135.0,82134.0,0.88102372]
[1743402647461,0.001,82135.0,82134.0,0.63851972]
[1743402647846,0.001,82135.0,82134.0,0.63751972]
[1743402648047,0.001,82135.0,82134.0,0.00511972]
[1743402648278,0.001,82135.0,82134.0,0.00611972]
[1743402648508,0.255669,82137.0,82134.0,0.00111972]
[1743402649047,0.255669,82137.0,82134.0,0.00211972]
[1743402649490,0.255669,82137.0,82134.0,0.00111972]
[1743402650399,0.27473979,82137.0,82134.0,0.00011972]
[1743402650572,0.28709881,82137.0,82134.0,0.00011972]
[1743402650797,0.28709881,82137.0,82134.0,0.00111972]
[1743402651305,0.04360381,82137.0,82134.0,0.00111972]
[1743402652618,0.012174,82136.0,82134.0,0.00111972]
[1743402652860,0.28709981,82137.0,82134.0,0.00111972]
[1743402653514,0.28709981,82137.0,82134.0,0.00011972]
[1743402653944,0.28709981,82137.0,82134.0,0.00111972]
[1743402654087,0.255676,82135.0,82134.0,0.00011972]
[1743402654284,0.555676,82135.0,82134.0,0.00011972]
[1743402654531,0.555676,82135.0,82134.0,0.00111972]
[1743402654770,0.67747869,82135.0,82134.0,0.00211972]
[1743402654948,1.76176785,82135.0,82134.0,0.00211972]
[1743402655166,1.61840785,82135.0,82134.0,0.00211972]
[1743402655498,0.91252185,82135.0,82134.0,0.00011972]
[1743402655847,0.91252185,82135.0,82134.0,0.00111972]
[1743402656258,0.93514601,82135.0,82134.0,0.00011972]
[1743402656906,0.93914601,82135.0,82134.0,0.00011972]
[1743402657108,0.93914601,82135.0,82134.0,0.00111972]
[1743402657332,0.72394101,82135.0,82134.0,0.00011972]
[1743402657523,0.70131685,82135.0,82134.0,0.00011972]
[1743402657734,0.562676,82135.0,82134.0,0.00011972]
[1743402658685,0.558676,82135.0,82134.0,0.00011972]
[1743402658879,0.560676,82135.0,82134.0,0.00011972]
[1743402659714,0.305,82135.0,82134.0,0.00011972]
[1743402659915,0.314175,82135.0,82134.0,0.00011972]
[1743402660320,0.33424751,82135.0,82134.0,0.00011972]
[1743402664660,0.02207251,82135.0,82134.0,0.00011972]
[1743402664912,0.02207251,82135.0,82134.0,0.01229472]
[1743402665107,0.02207251,82135.0,82134.0,0.33209872]
[1743402665545,0.02207251,82135.0,82134.0,0.38159872]
[1743402666501,0.02107251,82135.0,82134.0,0.38159872]
[1743402666948,0.02107251,82135.0,82134.0,0.38359872]
[1743402667157,0.01907251,82135.0,82134.0,0.38359872]
[1743402667356,0.243474,82145.0,82141.0,0.243483]
[1743402667674,0.243474,82145.0,82137.0,0.243494]
[1743402667675,0.012174,82142.0,82137.0,0.243494]
[1743402667830,0.243484,82141.0,82138.0,0.385291]
[1743402668275,0.02465734,82146.0,82138.0,0.1418]
[1743402668276,0.012173,82143.0,82138.0,0.1418]
[1743402668418,0.243484,82141.0,82138.0,0.385292]
[1743402668837,0.243481,82142.0,82138.0,0.385292]
[1743402669045,0.001,82145.0,82139.0,0.255663]
[1743402669247,0.001,82145.0,82142.0,0.243479]
[1743402669248,0.244472,82145.0,82142.0,0.243479]
[1743402669457,0.243477,82143.0,82139.0,0.243489]
[1743402669669,0.243481,82142.0,82139.0,0.243489]
[1743402669863,0.243475,82144.0,82139.0,0.255663]
[1743402670085,0.243475,82144.0,82140.0,0.243486]
[1743402670289,0.03124231,82143.0,82138.0,0.1418]
[1743402670495,0.243484,82141.0,82138.0,0.385292]
[1743402670706,0.012174,82142.0,82139.0,0.243489]
[1743402670707,0.24348,82142.0,82139.0,0.243489]
[1743402671166,0.27472131,82143.0,82139.0,0.243487]
[1743402671669,0.012174,82139.0,82134.0,0.00011972]
[1743402671872,0.012174,82142.0,82134.0,0.24362372]
[1743402672093,0.01906931,82143.0,82140.0,0.243484]
[1743402672294,0.01906931,82143.0,82142.0,0.24348]
[1743402672694,0.01906931,82143.0,82141.0,0.255657]
[1743402672922,0.01906931,82143.0,82142.0,0.24348]
[1743402673123,0.01906931,82143.0,82142.0,0.255654]
[1743402673329,0.01906931,82143.0,82141.0,0.0763]
[1743402673564,0.01906931,82143.0,82141.0,0.319781]
[1743402674169,0.01906931,82143.0,82142.0,0.24348]
[1743402674665,0.02006931,82143.0,82141.0,0.331955]
[1743402675020,0.01906931,82143.0,82141.0,0.331955]
[1743402675219,0.01906931,82143.0,82142.0,0.24348]
[1743402675444,0.02006931,82143.0,82142.0,0.24348]
[1743402675857,0.02006931,82143.0,82141.0,0.331955]
[1743402676710,0.01906931,82143.0,82141.0,0.331955]
[1743402677301,0.001,82143.0,82142.0,0.24348]
[1743402678073,0.243473,82145.0,82142.0,0.24348]
[1743402678418,0.001,82143.0,82142.0,0.24348]
[1743402678751,0.001,82143.0,82142.0,0.255654]
[1743402679760,0.0004,82147.0,82145.0,0.24347]
[1743402680182,0.0004,82147.0,82145.0,0.24247]
[1743402680433,0.243469,82146.0,82142.0,0.255654]
[1743402680628,0.01946895,82147.0,82146.0,0.255641]
[1743402680808,0.01946895,82147.0,82145.0,0.243471]
[1743402681010,0.02246895,82147.0,82145.0,0.243471]
[1743402681438,0.02146895,82147.0,82145.0,0.243471]
[1743402681639,0.001,82146.0,82145.0,0.243471]
[1743402681842,0.01946895,82147.0,82146.0,0.243468]
[1743402682636,0.01946895,82147.0,82145.0,0.243471]
[1743402682941,0.02146895,82147.0,82146.0,0.243468]
[1743402683318,0.02046895,82147.0,82146.0,0.243468]
[1743402683514,0.01946895,82147.0,82146.0,0.255641]
[1743402685293,0.01946895,82147.0,82146.0,0.256641]
[1743402686031,0.01946895,82147.0,82146.0,0.331741]
[1743402686231,0.01946895,82147.0,82146.0,0.332741]
[1743402686978,0.01946895,82147.0,82146.0,0.330741]
[1743402687174,0.01946895,82147.0,82146.0,0.332741]
[1743402687398,0.0004,82147.0,82146.0,0.334741]
[1743402688929,0.1,82180.0,82174.0,0.012169]
[1743402689153,0.012168,82179.0,82171.0,0.012169]
[1743402689354,0.312168,82179.0,82171.0,0.012169]
[1743402689561,0.243384,82175.0,82171.0,0.255561]
[1743402689735,0.312169,82175.0,82170.0,0.243395]
[1743402689934,0.243392,82172.0,82170.0,0.243395]
[1743402690137,0.243392,82172.0,82166.0,0.14196]
[1743402690138,0.243403,82168.0,82166.0,0.14196]
[1743402690404,0.2434,82170.0,82168.0,0.00011972]
[1743402690564,0.01217,82169.0,82168.0,0.00011972]
[1743402691375,0.25557,82169.0,82168.0,0.00011972]
[1743402691805,0.2454,82169.0,82168.0,0.00011972]
[1743402692028,0.25757,82169.0,82168.0,0.00011972]
[1743402693459,0.26057,82169.0,82168.0,0.00011972]
[1743402693930,0.25757,82169.0,82168.0,0.00011972]
[1743402694622,0.25957,82169.0,82168.0,0.00011972]
[1743402695054,0.2474,82169.0,82168.0,0.00011972]
[1743402695266,0.004,82169.0,82168.0,0.00011972]
[1743402695958,0.2474,82169.0,82168.0,0.00011972]
[1743402696940,0.004,82169.0,82168.0,0.00011972]
[1743402697177,0.25957,82169.0,82168.0,0.00011972]
[1743402697666,0.55957,82169.0,82168.0,0.00011972]
[1743402697910,0.64981085,82169.0,82168.0,0.00011972]
[1743402700507,0.6688775,82169.0,82168.0,0.00011972]
[1743402707276,0.64981085,82169.0,82168.0,0.00011972]
[1743402708996,0.55957,82169.0,82168.0,0.00011972]
[1743402709221,0.55957,82169.0,82168.0,0.24352272]
[1743402709222,0.304,82169.0,82168.0,0.24352272]
[1743402709422,0.31617,82169.0,82168.0,0.00011972]
[1743402709621,0.55957,82169.0,82168.0,0.00011972]
[1743402710379,0.57863492,82169.0,82168.0,0.00011972]
[1743402717339,0.55957,82169.0,82168.0,0.00011972]
[1743402720338,0.57863606,82169.0,82168.0,0.00011972]
[1743402722038,0.57663606,82169.0,82168.0,0.00011972]
[1743402722216,0.57863606,82169.0,82168.0,0.00011972]
[1743402722410,0.57663606,82169.0,82168.0,0.00011972]
[1743402722809,0.57863606,82169.0,82168.0,0.00011972]
[1743402724505,0.57863606,82169.0,82168.0,0.07871972]
[1743402726625,0.57863606,82169.0,82168.0,0.00011972]
[1743402727464,0.55957,82169.0,82168.0,0.00011972]
[1743402728024,0.64738614,82169.0,82168.0,0.00011972]
[1743402728207,0.55957,82169.0,82168.0,0.00011972]
[1743402730437,0.57863531,82169.0,82168.0,0.00011972]
[1743402733018,0.66043531,82169.0,82168.0,0.00011972]
[1743402734421,0.57863531,82169.0,82168.0,0.00011972]
[1743402737314,0.55957,82169.0,82168.0,0.00011972]
[1743402738838,0.5474,82169.0,82168.0,0.00011972]
[1743402739965,0.304,82169.0,82168.0,0.00011972]
[1743402740436,0.32306531,82169.0,82168.0,0.00011972]
[1743402743482,0.02306531,82169.0,82168.0,0.00011972]
[1743402744646,0.02306531,82169.0,82168.0,0.01228972]
[1743402746023,0.02306531,82169.0,82168.0,0.25569272]
[1743402747084,0.02306531,82169.0,82168.0,0.01228972]
[1743402747266,0.004,82169.0,82168.0,0.01228972]
[1743402747618,0.004,82169.0,82168.0,0.00011972]
[1743402748953,0.004,82169.0,82168.0,0.24352272]
[1743402749584,0.004,82169.0,82168.0,0.25569272]
[1743402750421,0.02306217,82169.0,82168.0,0.25569272]
[1743402754166,0.01906217,82169.0,82168.0,0.25569272]
[1743402754308,0.02106217,82169.0,82168.0,0.25569272]
[1743402754912,0.01906217,82169.0,82168.0,0.25569272]
[1743402755125,0.02006217,82169.0,82168.0,0.25569272]
[1743402755388,0.01906217,82169.0,82168.0,0.25569272]
[1743402755913,0.01906217,82169.0,82168.0,0.25669272]
[1743402756354,0.02106217,82169.0,82168.0,0.25669272]
[1743402756559,0.02106217,82169.0,82168.0,0.39953272]
[1743402756776,0.01906217,82169.0,82168.0,0.39953272]
[1743402760990,0.243387,82174.0,82171.0,0.243392]
[1743402761901,0.243387,82174.0,82171.0,0.243394]
[1743402762616,0.244387,82174.0,82171.0,0.243394]
[1743402763265,0.245387,82174.0,82171.0,0.243394]
[1743402763681,0.26444941,82174.0,82171.0,0.243394]
[1743402764418,0.26444941,82174.0,82171.0,0.386074]
[1743402764629,0.26444941,82174.0,82171.0,0.14268]
[1743402765318,0.24339,82173.0,82171.0,0.14268]
[1743402766130,0.243391,82172.0,82171.0,0.14268]
[1743402766770,0.243391,82172.0,82168.0,0.00011972]
[1743402767018,0.55557,82169.0,82168.0,0.00011972]
[1743402767185,0.63547,82169.0,82168.0,0.00011972]
[1743402768477,0.63547,82169.0,82168.0,0.00111972]
[1743402768862,0.63547,82169.0,82168.0,0.00211972]
[1743402769170,0.69801085,82169.0,82168.0,0.00211972]
[1743402769570,0.69801085,82169.0,82168.0,0.00011972]
[1743402770139,0.55657,82169.0,82168.0,0.00011972]
[1743402770346,0.57663586,82169.0,82168.0,0.00011972]
[1743402770545,0.59117671,82169.0,82168.0,0.00011972]
[1743402777472,0.57211085,82169.0,82168.0,0.00011972]
[1743402780426,0.59117671,82169.0,82168.0,0.00011972]
[1743402780858,0.57663586,82169.0,82168.0,0.00011972]
[1743402781047,0.56446586,82169.0,82168.0,0.00011972]
[1743402781472,0.57663586,82169.0,82168.0,0.00011972]
[1743402782339,0.57563586,82169.0,82168.0,0.00011972]
[1743402782513,0.57663586,82169.0,82168.0,0.00011972]
[1743402783756,0.57563586,82169.0,82168.0,0.00011972]
[1743402787156,0.55657,82169.0,82168.0,0.00011972]
[1743402787368,0.55557,82169.0,82168.0,0.00011972]
[1743402789272,0.3,82169.0,82168.0,0.00011972]
[1743402789667,0.3,82169.0,82168.0,0.25569272]
[1743402790311,0.243356,82185.0,82178.0,0.243374]
[1743402790506,0.0122709,82179.0,82177.0,0.243376]
[1743402790845,0.543377,82177.0,82176.0,0.14208]
[1743402791231,0.555545,82177.0,82176.0,0.14208]
[1743402792642,0.556545,82177.0,82176.0,0.14208]
[1743402792980,0.544377,82177.0,82176.0,0.14208]
[1743402793691,0.557545,82177.0,82176.0,0.14208]
[1743402794910,0.243383,82175.0,82174.0,0.0826]
[1743402795103,0.555554,82175.0,82170.0,0.243397]
[1743402795259,0.543385,82175.0,82174.0,0.14248]
[1743402796589,0.243389,82173.0,82172.0,0.14248]
[1743402797190,0.543388,82174.0,82172.0,0.14248]
[1743402797717,0.243388,82173.0,82172.0,0.14248]
[1743402797915,0.543388,82174.0,82172.0,0.14448]
[1743402798147,0.543388,82174.0,82172.0,0.14348]
[1743402798278,0.543388,82174.0,82172.0,0.14248]
[1743402798483,0.543388,82174.0,82172.0,0.14348]
[1743402799132,0.243388,82173.0,82172.0,0.14448]
[1743402799326,0.543388,82174.0,82172.0,0.14448]
[1743402799696,0.3,82174.0,82172.0,0.14448]
[1743402800289,0.3,82174.0,82172.0,0.38787]
[1743402800654,0.3,82174.0,82172.0,0.38587]
[1743402800880,0.3,82175.0,82173.0,0.243388]
[1743402801353,0.3,82175.0,82172.0,0.38687]
[1743402801572,0.543385,82175.0,82173.0,0.243388]
[1743402802442,0.543385,82175.0,82174.0,0.142]
[1743402803013,0.3,82175.0,82174.0,0.142]
[1743402803517,0.543383,82175.0,82174.0,0.142]
[1743402803724,0.56244577,82175.0,82174.0,0.142]
[1743402804368,0.56244577,82175.0,82174.0,0.143]
[1743402804570,0.56244577,82175.0,82174.0,0.144]
[1743402804766,0.31906277,82175.0,82174.0,0.144]
[1743402804971,0.01906277,82175.0,82174.0,0.387385]
[1743402805369,0.01906277,82175.0,82174.0,0.399554]
[1743402805750,0.01906277,82175.0,82174.0,0.480154]
[1743402809978,0.01906277,82175.0,82174.0,1.112354]
[1743402810178,0.01906277,82175.0,82174.0,0.970354]
[1743402810355,0.01202757,82179.0,82175.0,0.012169]
[1743402810541,0.01202757,82179.0,82174.0,0.970354]
[1743402810542,0.243379,82177.0,82176.0,0.1418]
[1743402811111,0.243377,82177.0,82176.0,0.14188]
[1743402811442,0.31211965,82179.0,82177.0,0.243376]
[1743402811641,0.31311965,82179.0,82177.0,0.243374]
[1743402812271,0.31311965,82179.0,82178.0,0.243374]
[1743402812503,0.01311965,82179.0,82178.0,0.338642]
[1743402812708,0.01211965,82179.0,82178.0,0.338642]
[1743402812905,0.243361,82183.0,82178.0,0.468314]
[1743402813107,0.012168,82181.0,82178.0,0.14184]
[1743402813307,0.243369,82180.0,82178.0,0.14184]
[1743402813852,0.012168,82181.0,82178.0,0.14184]
[1743402814029,0.255533,82181.0,82178.0,0.385213]
[1743402814215,0.3190606,82182.0,82179.0,0.24337]
[1743402815339,0.2624236,82182.0,82178.0,0.385213]
[1743402815541,0.243368,82181.0,82178.0,0.385213]
[1743402817505,0.244368,82181.0,82178.0,0.385213]
[1743402820171,0.001,82181.0,82179.0,0.24337]
[1743402821032,0.243363,82182.0,82179.0,0.24337]
[1743402821255,0.001,82181.0,82180.0,0.243366]
[1743402821653,0.001,82181.0,82179.0,0.24337]
[1743402822866,0.243363,82182.0,82179.0,0.24337]
[1743402823168,0.244363,82182.0,82179.0,0.24337]
[1743402823521,0.243363,82182.0,82179.0,0.24337]
[1743402823741,0.26242366,82182.0,82180.0,0.243368]
[1743402823938,0.001,82181.0,82180.0,0.243368]
[1743402824538,0.243366,82181.0,82179.0,0.24337]
[1743402824948,0.02006066,82182.0,82180.0,0.243366]
[1743402825780,0.02006066,82182.0,82181.0,0.243365]
[1743402825984,0.01906066,82182.0,82181.0,0.337433]
[1743402826380,0.01906066,82182.0,82181.0,0.336433]
[1743402826775,0.01906066,82182.0,82181.0,0.384333]
[1743402826979,0.3,82191.0,82189.0,0.24334]
[1743402827178,0.3,82191.0,82189.0,0.012167]
[1743402827381,0.3,82191.0,82190.0,0.255504]
[1743402827982,0.3,82194.0,82193.0,0.243329]
[1743402828251,0.3,82194.0,82193.0,0.242329]
[1743402828658,0.31201405,82194.0,82193.0,0.240329]
[1743402828879,0.31201405,82194.0,82193.0,0.252495]
[1743402829099,0.03107215,82194.0,82193.0,0.393535]
[1743402829277,0.03115799,82194.0,82193.0,0.390535]
[1743402829490,0.01509989,82194.0,82193.0,0.14104]
[1743402829842,0.25842589,82194.0,82193.0,0.14104]
[1743402830048,0.27459189,82194.0,82193.0,0.14104]
[1743402830315,0.28148398,82194.0,82193.0,0.14104]
[1743402833731,0.29364998,82194.0,82193.0,0.14104]
[1743402837365,0.27459189,82194.0,82193.0,0.14104]
[1743402839922,0.243334,82192.0,82189.0,0.243341]
[1743402840179,0.243342,82189.0,82186.0,0.395797]
[1743402840397,0.012167,82186.0,82183.0,0.14028]
[1743402840672,0.012167,82184.0,82177.0,0.63212]
[1743402840850,0.012167,82184.0,82180.0,0.243365]
[1743402841044,0.243356,82184.0,82181.0,0.243363]
[1743402841521,0.243356,82184.0,82180.0,0.243365]
[1743402841522,0.3,82184.0,82183.0,0.255526]
[1743402841676,0.001,82186.0,82184.0,0.243356]
[1743402841872,0.001,82186.0,82184.0,0.255523]
[1743402842073,0.3,82189.0,82188.0,0.243344]
[1743402842399,0.3,82189.0,82188.0,0.242344]
[1743402842576,0.31905906,82189.0,82188.0,0.254511]
[1743402842973,0.01905906,82189.0,82188.0,0.254511]
[1743402843384,0.01905906,82189.0,82188.0,0.253511]
[1743402844161,0.01905906,82189.0,82188.0,0.301011]
[1743402845099,0.02105906,82189.0,82188.0,0.301011]
[1743402847313,0.002,82189.0,82188.0,0.301011]
[1743402850416,0.02105632,82189.0,82188.0,0.301011]
[1743402851401,0.01905632,82189.0,82188.0,0.301011]
[1743402851823,0.02105632,82189.0,82188.0,0.301011]
[1743402852189,0.01905632,82189.0,82188.0,0.301011]
[1743402852408,0.01905632,82189.0,82186.0,0.24335]
[1743402852627,0.24335,82186.0,82183.0,0.63212]
[1743402852837,0.243347,82187.0,82183.0,0.875478]
[1743402853040,0.255523,82184.0,82183.0,0.63212]
[1743402853233,0.243353,82185.0,82177.0,0.012168]
[1743402853234,0.25552,82185.0,82181.0,0.383565]